Workbook

Sheet READ ME
D11: Read Me Sheet
D16: INVEST – Farm Analysis Tool
D18: Introduction
D19: This tool allows for assessment on farm productivity and profitability through its average annual agricultural production. The tool is useful for establishing a baseline or to assess the impact of planned investments. This tool allows a SPIS advisor (supplier, development practitioner, extension officer) to support a farm enterprise towards identify unnecessary costs, determine best value agricultural activities and correctly monetize different farm inputs.
D26: Tips & Tricks
D36: Overview
D37: This tool comprises the following sheets:
D39: 0. Quick Check | G39: Initial basic assessment to obtain profit/loss indication
D41: 1. General Information | G41: on the farm identity, location and area
D43: 2. Equipment & Assets | G43: currently available on the farm or considered for future purchase
D45: 3. General Costs & Financing | G45: overall regular expenditures and costs for loans
D47: 4. Other Income | G47: additional income not directly related to crop or livestock production such as sale of water or rental out of equipment
D50: 5. Seasonal Crops | G50: to add current or projected sales of seasonal crops (e.g. rice, vegetables, fodder) and by-products and the related variable expenditures
D53: 6. Perennial Crops | G53: to add current or projected sales of perennial crops (e.g. fruit trees) and by-products and the related variable expenditures
D56: 7. Livestock | G56: to add current or projected sales of livestock, poultry and by-products and the related variable expenditures
D59: 8. Farm Income Statement | G59: No Entry! Summary calculation on gross profitability of the farm enterprise
D61: Supplementary: Crop Price Calculation Sheet | G61: for calculating average annual costs for selected crops and livestock based on seasonal monthly variations
D65: About
D66: Published by: | F66: GIZ & FAO
D67: Responsible: | F67: GIZ project Sustainable Energy for Food - Powering Agriculture
D69: Contact: | F69: Powering.Agriculture@giz.de
D70: Download link: | F70: https://energypedia.info/wiki/Toolbox_on_SPIS
D71: About: | F71: Powering Agriculture: An Energy Grand Challenge for Development. Available at:
F73: https://poweringag.org
D74: Version: | F74: 1.1 (May 2018)
D76: The Toolbox on Solar Powered Irrigation Systems is made possible through the global initiative Powering Agriculture: An Energy Grand Challenge for Development (PAEGC). In 2012, the United States Agency for International Development (USAID), the Swedish International Development Cooperation Agency (Sida), the German Federal Ministry for Economic Cooperation and Development (BMZ), Duke Energy, and the Overseas Private Investment Cooperation (OPIC) combined resources to create the PAEGC initiative. The objective of PAEGC is to support new and sustainable approaches to accelerate the development and deployment of clean energy solutions for increasing agriculture productivity and/or value for farmers and agribusinesses in developing countries and emerging regions that lack access to reliable, affordable clean energy.
D89: The designations employed and the presentation of material in this information product do not imply the expression of any opinion whatsoever on the part of Deutsche Gesellschaft für Internationale Zusammenarbeit (GIZ) GmbH, Food and Agriculture Organization of the United Nations (FAO) or any of the PAEGC Founding Partners concerning the legal or development status of any country, territory, city or area or of its authorities, or concerning the delimitation of its frontiers or boundaries. The mention of specific companies or products of manufacturers, whether or not these have been patented, does not imply that these have been endorsed or recommended by GIZ, FAO, or any of the PAEGC Founding Partners in preference to others of a similar nature that are not mentioned. The views expressed in this information product are those of the author and do not necessarily reflect the views or policies of GIZ, FAO, or any of the PAEGC Founding Partners.
D104: GIZ, FAO and the PAEGC Founding Partners encourage the use, reproduction and dissemination of material in this information product. Except where otherwise indicated, material may be copied, downloaded and printed for private study, research and teaching purposes, or for use in non-commercial products or services, provided that appropriate acknowledgement of GIZ and FAO as the source and copyright holder is given.
D112: © GIZ and FAO, 2018

Sheet List of dropdown (hidden)
A2: Area | B2: CF to ha
A3: ha | B3: 1
A4: Acre | B4: 2.47105
A5: Sq. km | B5: 0.01
A6: Sq. m | B6: 10000
A7: Sq. yard | B7: 11959.9
A8: Sq. ft | B8: 107639
A10: Conversion Factor | B10: =VLOOKUP('1 General Information'!D15,'List of dropdown'!A3:B8,2,FALSE) -> 1
A13: Weight | B13: CF to kg
A14: kg | B14: 1
A15: metric ton | B15: 1000
A16: quintal | B16: 100
A17: pound (lb) | B17: 0.4536
A19: Conversion Factor | B19: =VLOOKUP('1 General Information'!D16,'List of dropdown'!A14:B17,2,FALSE) -> 0.4536

Sheet 0 Quick Check
A1: INVEST – Farm Analysis Tool
B2: 0 QUICK CHECK
B5: Annual Expenditure
B6: Expenditure Type | C6: Examples | D6: Annual Amount
B7: Seasonal crop expenses | C7: Seedlings, pesticides, fertilisers, protection, etc | D7: 34 | F7: Calculator
B8: Perennial crop expenses | C8: Seedlings, pesticides, fertilisers, protection, etc | D8: 57 | G8: add up: | H8: multiply: | I8: divide:
B9: Livestock expenses | C9: New livestock, fodder, slaughtering, veterinary services, etc | F9: a.
B10: Operation and maintenance - Infrastructure | C10: Building renovations, painting, plastering, fencing, electricity, water, etc | F10: b.
B11: Operation and maintenance - Fixed equipment | C11: Water pumps, irrigation equipment, packaging equipment, milling, fuel, spare parts, repairs, etc | F11: c.
B12: Operation and maintenance - Movable equipment | C12: Tractor, trucks, plough, trailer, fuel, spare parts, repairs, etc | F12: d.
B13: Labour | C13: Salaries, benefits, own salary (?) etc | D13: 100 | F13: e.
B14: Sales and distribution | C14: Packaging, fees, advertising, etc | F14: Total | G14: =SUM(G9:G13) -> 0 | H14: =H9*H10 -> 0 | I14: =I9/I10 -> 
B15: Management and administration | C15: Rent, office consumables, insurance, memberships, loan repayments, etc
D17: =SUM(D7:D16) -> 191
B19: Annual Income
B20: Income Type | C20: Examples | D20: Annual Amount
B21: Seasonal crop sales | C21: Tomatos, grain, rice, value added product, etc | D21: 0
B22: By-products from seasonal crops | C22: Compost, fodder, value added product, etc
B23: Perennial crop sales | C23: Citrus, apples, dates, berries, value added product, etc | D23: 100
B24: By-products from perennial crops | C24: Wood fuel, mulch, value added product, etc
B25: Livestock sales | C25: Cattle, sheep, chickens, etc
B26: By-products from livestock | C26: Manure, eggs, milk, wool, value added product, etc | D26: 60
B27: Lease income | C27: Labour, vehicles, land, etc
B28: Services income | C28: Subcontract work, maintenance service, packaging service, transport, etc
D30: =SUM(D21:D29) -> 160
C32: Profit or loss | D32: =D30-D17 -> -31
B33: =IF(D32>0,"You are profitable! Proceed with detailed analysis to be sure.",(IF(D32<0,"You are making a loss. Review your values or consider additional income opportunities business or means to reduce expenses.",""))) -> You are making a loss. Review your values or consider additional income opportunities business or means to reduce expenses.

Sheet 1 General Information
A1: INVEST – Farm Analysis Tool
B2: 1 GENERAL FARM INFORMATION
B5: Country | G5: Region
B6: Farm code | G6: Date
B8: Name of the farm
B9: Village
B10: Division
B11: District
B12: Interviewer
B13: Agricultural planning period (years) | F13: (year in four digits each ! )
B14: Currency used for calculation
B15: Area measurement unit | D15: ha | I15: Conversion factor to 1 ha : | J15: ='List of dropdown'!B10 -> 1
B16: Weight measurement unit | D16: pound (lb) | I16: Conversion factor to 1 kg : | J16: ='List of dropdown'!B19 -> 0.4536
B19: LAND RESOURCES
B21: Property rights | D21: Area
B22: + Land owned | E22: 6 | F22: =+$D$15 -> ha | G22: = | I22: =+E22/$J$15 -> 6 | J22: ha
B23: + Additional land as part of co-operative land | F23: =+$D$15 -> ha | G23: = | I23: =+E23/$J$15 -> 0 | J23: ha
B24: + Additional land exploited as sharegrower | F24: ha | G24: = | I24: 0 | J24: ha
B25: + Additional land leased in | F25: ha | G25: = | I25: 0 | J25: ha
B26: - Own land leased out | F26: ha | G26: = | I26: 0 | J26: ha
B27: + Additional land in possession of other sources | F27: ha | G27: = | I27: 0 | J27: ha
B28: - Own land unused or unusable | F28: ha | G28: = | I28: 0
D29: Total | E29: =+SUM(E22:E25)-E26+E27-E28 -> 6 | F29: ha | G29: = | I29: 6 | J29: ha
B32: Land classification | D32: Area | E32: rain fed | F32: irrigated | I32: Total area
B33: Seasonal crop land | E33: 8 | G33: =+$D$15 -> ha | H33: = | I33: =(+E33+F33)/$J$15 -> 8 | J33: ha
B34: Perennials (with & without option of intercropping) | G34: ha | H34: = | I34: =(+E34+F34)/$J$15 -> 0 | J34: ha
B35: Greenhouses | G35: ha | H35: = | I35: =(+E35+F35)/$J$15 -> 0 | J35: ha
B36: Pastures (grazing land) | G36: ha | H36: = | I36: =(+E36+F36)/$J$15 -> 0 | J36: ha
B37: Fallow land | G37: ha | H37: = | I37: =(+E37+F37)/$J$15 -> 0 | J37: ha
D38: Total agricultural / horticultural land | E38: =+SUM(E33:E37) -> 8 | F38: =+SUM(F33:F37) -> 0 | G38: ha | H38: = | I38: =IF((+$I$33+$I$34+$I$35+$I$36+$I$37)=I29,+$I$33+$I$34+$I$35+$I$36+$I$37,"CHECK Property rights") -> CHECK Property rights | J38: ha

Sheet 2 Equipment & Assets
A1: INVEST – Farm Analysis Tool
B2: 2 EQUIPMENT & ASSETS
E4: Farm code | F4: ='1 General Information'!C6 -> 0
B6: Type | C6: Cost of existing equipment (when originally purchased) | D6: Salvage value (when selling existing equipment) | E6: Age | F6: Normal life span | G6: Annual depreciation for replacement
C10: ='1 General Information'!D14 -> 0 | D10: ='1 General Information'!D14 -> 0 | E10: years | F10: years | G10: ='1 General Information'!D14 -> 0
B11: Tractor | C11: 7000 | D11: 1000 | E11: 5 | F11: 10 | G11: =IFERROR(SLN(C11,D11,(F11-E11)),"") -> 1200 | H11: Indicative normal life span: | I11: Please select
B12: Please select
B13: Please select | H13: Livestock shed - 20 years | I13: Livestock shed
B14: Please select | H14: Garage / workshop - 20 year | I14: Garage / workshop
B15: Please select | H15: Storage / warehouse - 20 years | I15: Storage / warehouse
B16: Please select | H16: Greenhouse - 10 years | I16: Greenhouse
B17: Please select | G17: =IFERROR(SLN(C17,D17,(F17-E17)),"") ->  | H17: Other building - 20 years | I17: Other building
B18: Please select | H18: Ox cart - 7 years | I18: Ox cart
B19: Please select | H19: Truck / car - 10 years | I19: Truck / car
B20: Please select | H20: Tractor - 10 years | I20: Tractor
B21: Please select | H21: Plough - 7 years | I21: Plough
B22: Please select | H22: Cultivator / tiller - 7 years | I22: Cultivator / tiller
B23: Please select | H23: Sowing machine - 7 years | I23: Sowing machine
B24: Please select | H24: Fertilizer distributor - 7 years | I24: Fertilizer distributor
B25: Please select | H25: Sprayer - 7 years | I25: Sprayer
B26: Please select | H26: Grass cutter - 7 years | I26: Grass cutter
B27: Please select | H27: Baler - 7 years | I27: Baler
B28: Please select | H28: Cereal harvester - 10 years | I28: Cereal harvester
H29: Irrigation material - 5 years | I29: Irrigation material
H30: Water pump - 7 years | I30: Water pump
H31: PV generator - 20 years | I31: PV generator
H32: Well / borehole - 20 years | I32: Well / borehole
C38: Total Annual Depreciation | F38: ='1 General Information'!D14 -> 0 | G38: =+SUM(G11:G36) -> 1200

Sheet 3 General Costs & Financing
A1: INVEST – Farm Analysis Tool
B2: 4 COSTS (FIXED and VARIABLE)
B3: Note: The costs listed below are general costs. Costs specifically for seasonal crops, perennial crops and livestock are recorded in seperate sheets
L4: Farm code | M4: ='1 General Information'!C6 -> 0
B6: Month | C6: January | D6: February | E6: March | F6: April | G6: May | H6: June | I6: July | J6: August | K6: September | L6: October | M6: November | N6: December | O6: Total
B7: Type of FIXED COSTS | C7: 1 | D7: 2 | E7: 3 | F7: 4 | G7: 5 | H7: 6 | I7: 7 | J7: 8 | K7: 9 | L7: 10 | M7: 11 | N7: 12
B8: Membership fees | O8: =+SUM(C8:N8) -> 0
B9: Insurance costs | O9: =+SUM(C9:N9) -> 0
B10: Land tax | O10: 0
B11: Social fund contribution | O11: 0
B12: Leasing fees for equipment | O12: 0
B13: Rental costs for land | O13: =+SUM(C13:N13) -> 0
B14: Other fixed costs | O14: 0
B15: TOTAL FIXED COSTS per month | C15: =+SUM(C8:C14) -> 0 | D15: 0 | E15: 0 | F15: 0 | G15: 0 | H15: 0 | I15: 0 | J15: 0 | K15: 0 | L15: 0 | M15: 0 | N15: 0 | O15: 0
B16: Month | C16: January | D16: February | E16: March | F16: April | G16: May | H16: June | I16: July | J16: August | K16: September | L16: October | M16: November | N16: December | O16: Total
B17: Type of VARIABLE COSTS | C17: 1 | D17: 2 | E17: 3 | F17: 4 | G17: 5 | H17: 6 | I17: 7 | J17: 8 | K17: 9 | L17: 10 | M17: 11 | N17: 12
B18: Maintenance & repair | O18: 0
B19: General fuel & lubricants | O19: 0
B20: Water, electricity, gas supply | O20: 0
B21: Regular transport fees | O21: 0
B22: Regular staff salary costs | O22: 0
B23: Other variable costs | O23: =+SUM(C23:N23) -> 0
B24: TOTAL VARIABLE COSTS per month | C24: =+SUM(C18:C23) -> 0 | D24: 0 | E24: 0 | F24: 0 | G24: 0 | H24: 0 | I24: 0 | J24: 0 | K24: 0 | L24: 0 | M24: 0 | N24: 0 | O24: 0
B25: CREDIT AND FINANCING (simplified calculator, to be confirmed with loan provider)
J26: Enter manually:
B27: Bank name | C27: Loan amount | D27: Credit period (years) | E27: Month of taking credit | F27: Year of taking credit | G27: Annual interest rate | H27: Monthly loan repayment | K27: Note: the calculator value will take precedence to the manual value. Ensure calculator value is 0 in order to use manual value.
I28: OR
H30: =IF(E30,-PMT(G30/12,D30*12,C30),"0") -> 0
H31: =IF(E31,-PMT(G31/12,D31*12,C31),"0") -> 0
H32: =IF(E32,-PMT(G32/12,D32*12,C32),"0") -> 0
H33: 0
H34: 0
H35: 0
H36: 0
B37: TOTAL CREDIT | C37: =SUM(C30:C36) -> 0 | H37: =SUM(H30:H36) -> 0 | J37: =SUM(J30:J36) -> 0
E38: Total Annual Loan Repayments | H38: =H37*12 -> 0 | J38: =J37*12 -> 0

Sheet 4 Other Income
A1: INVEST – Farm Analysis Tool
B2: 4 OTHER INCOME
L4: Farm code | M4: ='1 General Information'!C6 -> 0
B6: Month | C6: January | D6: February | E6: March | F6: April | G6: May | H6: June | I6: July | J6: August | K6: September | L6: October | M6: November | N6: December | O6: Total
B7: Type of OTHER INCOME | C7: 1 | D7: 2 | E7: 3 | F7: 4 | G7: 5 | H7: 6 | I7: 7 | J7: 8 | K7: 9 | L7: 10 | M7: 11 | N7: 12
B8: Sale of water | O8: =+SUM(C8:N8) -> 0
B9: Hire out of equipment | O9: =+SUM(C9:N9) -> 0
B10: Lease out storage space | O10: 0
B11: Lease out land | O11: 0
B12: Lease out labour | O12: 0
O13: =+SUM(C13:N13) -> 0
O14: 0
B15: TOTAL OTHER INCOME per month | C15: =+SUM(C8:C14) -> 0 | D15: 0 | E15: 0 | F15: 0 | G15: 0 | H15: 0 | I15: 0 | J15: 0 | K15: 0 | L15: 0 | M15: 0 | N15: 0 | O15: 0

Sheet 5 Seasonal Crops
A1: INVEST – Farm Analysis Tool
B2: 4 SEASONAL CROP GROSS PROFIT CALCULATION
E4: Farm code | F4: ='1 General Information'!C6 -> 0
B6: Agricultural land used: | C6: =SUM(C10:C14) -> 8 | D6: ='1 General Information'!D15 -> ha
D7: Unit | E7: ="Yield per "& '1 General Information'!D15 &" or Quantity" -> Yield per ha or Quantity | F7: Unit Price | G7: Value
B8: Sales
B9: Crop types: | C9: Area:
C10: 3 | D10: tonne | E10: 5 | F10: 100 | G10: =+F10*E10*C10 -> 1500
B11: marschmallow | C11: 5 | D11: kg | E11: 100 | F11: 2 | G11: =+F11*E11*C11 -> 1000
G12: 0
G13: 0
G14: 0
B15: By-products:
G16: =+F16*E16 -> 0
G17: 0
G18: 0
B19: GROSS PRODUCT | G19: =SUM(G10:G18) -> 2500
B20: Variable Costs
B21: Seeds
B22: Local seeds | D22: kg | G22: =+F22*E22 -> 0
B23: Certified seeds | D23: kg | G23: =+F23*E23 -> 0
C24: Sub-Total | G24: =+G23+G22 -> 0
B25: Manure & Fertiliser
B26: Manure | D26: kg | G26: =+F26*E26 -> 0
B27: N | D27: kg | G27: =+F27*E27 -> 0
B28: P | D28: kg | G28: =+F28*E28 -> 0
B29: K | D29: kg | G29: =+F29*E29 -> 0
C30: Sub-Total | G30: =+SUM(G26:G29) -> 0
B31: Plant Protection
B32: Herbicides | D32: kg or litres | G32: =+F32*E32 -> 0
B33: Insecticides | D33: kg or litres | G33: =+F33*E33 -> 0
B34: Fungicides | D34: kg or litres | G34: =+F34*E34 -> 0
B35: Others | D35: kg or litres | G35: =+F35*E35 -> 0
C36: Sub-Total | G36: =+SUM(G32:G35) -> 0
B37: Labour (family, permanent staff and temporary staff)
B38: Labour type | C38: Number of labour type:
B39: Family member | D39: months | G39: =+F39*E39*C39 -> 0 | I39: Family member | J39: days
B40: Family member | D40: months | G40: =+F40*E40*C40 -> 0 | I40: Permanent staff | J40: months
B41: Family member | D41: months | G41: =+F41*E41*C41 -> 0 | I41: Temporary staff | J41: years
B42: Family member | D42: months | G42: =+F42*E42*C42 -> 0
B43: Family member | D43: months | G43: 0
C44: Sub-Total | G44: =+SUM(G39:G43) -> 0
B45: Traction and Mechanisation (own equipment and hired services)
G46: =+F46*E46 -> 0
G47: 0
G48: 0
G49: 0
G50: 0
C51: Sub-Total | G51: =+SUM(G46:G50) -> 0
B52: Infrastructure (maintenance and expansion)
G53: =+F53*E53 -> 0
G54: 0
G55: 0
G56: 0
G57: 0
C58: Sub-Total | G58: =+SUM(G53:G57) -> 0
B59: Irrigation
B60: Water fees | G60: =+F60*E60 -> 0
B61: Fuel / energie | G61: =+F61*E61 -> 0
C62: Sub-Total | G62: =+G61+G60 -> 0
B63: Other costs
B64: Post-harvest operations | D64: ='1 General Information'!$D$14 -> 0 | G64: =E64*F64 -> 0
B65: Packaging materials | D65: ='1 General Information'!$D$14 -> 0 | G65: =E65*F65 -> 0
B66: Processing | D66: ='1 General Information'!$D$14 -> 0 | G66: 0
B67: Processing | D67: ='1 General Information'!$D$14 -> 0 | G67: 0
B68: Marketing | D68: ='1 General Information'!$D$14 -> 0 | G68: 0
C69: Sub-Total | G69: =SUM(G64:G68) -> 0
B71: TOTAL VARIABLE COSTS | G71: =+G69+G62+G58+G44+G36+G30+G24+G51 -> 0
B73: GROSS PROFIT | G73: =+G19-G71 -> 2500

Sheet 6 Perennial Crops
A1: INVEST – Farm Analysis Tool
B2: 5 PERENNIAL CROP GROSS PROFIT CALCULATION
E4: Farm code | F4: ='1 General Information'!C6 -> 0
B6: Agricultural land used: | C6: =SUM(C10:C14) -> 0 | D6: ='1 General Information'!D15 -> ha
D7: Unit | E7: ="Yield per "& '1 General Information'!D15 &" or Quantity" -> Yield per ha or Quantity | F7: Unit Price | G7: Value
B8: Sales
B9: Crop types: | C9: Area:
G10: =+F10*E10*C10 -> 0
G11: =+F11*E11*C11 -> 0
G12: 0
G13: 0
G14: 0
B15: By-products:
G16: =+F16*E16 -> 0
G17: =+F17*E17 -> 0
G18: 0
B19: GROSS PRODUCT | G19: =SUM(G10:G18) -> 0
B20: Variable Costs
B21: Seedlings
B22: Local Seedlings | G22: =+F22*E22 -> 0
B23: Nursery Seedlings | G23: =+F23*E23 -> 0
B24: Other establishment cost (juvenile phase) | G24: =F24 -> 0
G25: =F25 -> 0
C26: Sub-Total | G26: =SUM(G22:G25) -> 0
B27: Manure & Fertiliser
B28: Manure | G28: =+F28*E28 -> 0
B29: N | G29: =+F29*E29 -> 0
B30: P | G30: =+F30*E30 -> 0
B31: K | G31: =+F31*E31 -> 0
C32: Sub-Total | G32: =+SUM(G28:G31) -> 0
B33: Plant Protection
B34: Herbicides | D34: kg or litres | G34: =+F34*E34 -> 0
B35: Insecticides | D35: kg or litres | G35: =+F35*E35 -> 0
B36: Fungicides | D36: kg or litres | G36: =+F36*E36 -> 0
B37: Others | D37: kg or litres | G37: =+F37*E37 -> 0
C38: Sub-Total | G38: =+SUM(G34:G37) -> 0
B39: Labour (family, permanent staff and temporary staff)
B40: Labour type | C40: Number of labour type:
B41: Family member | C41: 1 | D41: months | E41: 12 | F41: 200 | G41: =+F41*E41*C41 -> 2400 | I41: Family member | J41: days
B42: Family member | C42: 1 | D42: months | E42: 3 | G42: =+F42*E42*C42 -> 0 | I42: Permanent staff | J42: months
B43: Family member | D43: months | G43: =+F43*E43*C43 -> 0 | I43: Temporary staff | J43: years
B44: Family member | D44: months | G44: =+F44*E44*C44 -> 0
B45: Family member | D45: months | G45: =+F45*E45*C45 -> 0
C46: Sub-Total | G46: =+SUM(G41:G45) -> 2400
B47: Traction and Mechanisation (own equipment and hired services)
G48: =+F48*E48 -> 0
G49: 0
G50: 0
G51: 0
G52: 0
C53: Sub-Total | G53: =+SUM(G48:G52) -> 0
B54: Infrastructure (maintenance and expansion)
B55: Fence repairs | G55: =+F55*E55 -> 0
B56: Irrigation system repair | G56: 0
G57: 0
G58: 0
G59: 0
C60: Sub-Total | G60: =+SUM(G55:G59) -> 0
B61: Irrigation
B62: Water fees | G62: =+F62*E62 -> 0
B63: Fuel / energie | G63: =+F63*E63 -> 0
C64: Sub-Total | G64: =+G63+G62 -> 0
B65: Other costs
B66: Post-harvest operations | G66: =E66*F66 -> 0
B67: Packaging materials | G67: =E67*F67 -> 0
B68: Processing | G68: 0
B69: Marketing | G69: 0
G70: 0
C71: Sub-Total | G71: =SUM(G66:G70) -> 0
B73: TOTAL VARIABLE COSTS | G73: =+G71+G64+G60+G46+G38+G32+G26+G53 -> 2400
B75: GROSS PROFIT | G75: =+G19-G73 -> -2400

Sheet 7 Livestock
A1: INVEST – Farm Analysis Tool
B2: 6 LIVESTOCK GROSS PROFIT CALCULATION
E4: Farm code | F4: ='1 General Information'!C6 -> 0
B6: Livestock sold: | C6: =SUM(E10:E23) -> 0 | D6: head
D7: Unit | E7: Quantity | F7: Unit Price | G7: Value
B8: Sales
B9: Livestock type
B10: Dairy cows | D10: head | G10: =+F10*E10 -> 0
B11: Heifers | D11: head | G11: =+F11*E11 -> 0
B12: Adult steers | D12: head | G12: 0
B13: Juvenile steers | D13: head | G13: 0
B14: Calfs | D14: head | G14: 0
B15: Sheep does | D15: head | G15: 0
B16: Sheep bucks | D16: head | G16: 0
B17: Sheep kids | D17: head | G17: 0
B18: Goat does | D18: head | G18: 0
B19: Goat bucks | D19: head | G19: 0
B20: Goat kids | D20: head | G20: 0
B21: Chickens | D21: head | G21: 0
G22: 0
G23: 0
B24: By-products:
B25: Milk | D25: litres | G25: =+F25*E25 -> 0
B26: Eggs | G26: =+F26*E26 -> 0
B27: Skins | G27: =+F27*E27 -> 0
B28: Manure | G28: =+F28*E28 -> 0
G29: 0
B30: GROSS PRODUCT | G30: =SUM(G10:G29) -> 0
B31: Fodder & Fodder Concentrates
B32: Regular base fodder | G32: =+F32*E32 -> 0
B33: Special fodder | G33: =+F33*E33 -> 0
B34: Composed concentrates | G34: 0
B35: Husks | G35: 0
B36: Sunflower oil cakes | G36: 0
B37: Grains | G37: 0
B38: Milk powder | G38: 0
C39: Sub-Total | G39: =SUM(G32:G38) -> 0
B40: Veterinary Services
B41: Vaccination | D41: ='1 General Information'!$D$14 -> 0 | G41: =+F41*E41 -> 0
B42: Inspections | D42: ='1 General Information'!$D$14 -> 0 | G42: =+F42*E42 -> 0
D43: ='1 General Information'!$D$14 -> 0 | G43: =+F43*E43 -> 0
D44: ='1 General Information'!$D$14 -> 0 | G44: =+F44*E44 -> 0
C45: Sub-Total | G45: =+SUM(G41:G44) -> 0
B46: Labour (family, permanent staff and temporary staff)
B47: Labour type | C47: Number of labour type:
B48: Family member | D48: months | G48: =+F48*E48*C48 -> 0 | I48: Family member | J48: days
B49: Family member | D49: months | G49: =+F49*E49*C49 -> 0 | I49: Permanent staff | J49: months
B50: Family member | D50: months | G50: =+F50*E50*C50 -> 0 | I50: Temporary staff | J50: years
B51: Family member | D51: months | G51: =+F51*E51*C51 -> 0
B52: Family member | D52: months | G52: =+F52*E52*C52 -> 0
C53: Sub-Total | G53: =+SUM(G48:G52) -> 0
B54: Traction and Mechanisation (own equipment and hired services)
B55: Ploughing / tillage | G55: =+F55*E55 -> 0
B56: Transport | G56: 0
G57: 0
G58: 0
G59: 0
C60: Sub-Total | G60: =+SUM(G55:G59) -> 0
B61: Infrastructure (maintenance and expansion)
B62: Fence repair | D62: ='1 General Information'!$D$14 -> 0 | G62: =+F62*E62 -> 0
B63: New shed | D63: ='1 General Information'!$D$14 -> 0 | G63: 0
D64: ='1 General Information'!$D$14 -> 0 | G64: 0
D65: ='1 General Information'!$D$14 -> 0 | G65: 0
D66: ='1 General Information'!$D$14 -> 0 | G66: 0
C67: Sub-Total | G67: =+SUM(G62:G66) -> 0
B68: Water supply
B69: Water fees | G69: =+F69*E69 -> 0
B70: Fuel / energie | G70: =+F70*E70 -> 0
C71: Sub-Total | G71: =+G70+G69 -> 0
B72: Other costs
B73: Cooling services | D73: ='1 General Information'!$D$14 -> 0 | G73: =E73*F73 -> 0
B74: Abattoir services | D74: ='1 General Information'!$D$14 -> 0 | G74: =E74*F74 -> 0
B75: Packaging materials | D75: ='1 General Information'!$D$14 -> 0 | G75: 0
B76: Pasture leasing | D76: ='1 General Information'!$D$14 -> 0 | G76: 0
B77: Processing | D77: ='1 General Information'!$D$14 -> 0 | G77: 0
B78: Marketing | D78: ='1 General Information'!$D$14 -> 0 | G78: 0
D79: ='1 General Information'!$D$14 -> 0 | G79: =E79*F79 -> 0
C80: Sub-Total | G80: =SUM(G73:G79) -> 0
B82: TOTAL VARIABLE COSTS | G82: =+G80+G71+G67+G53+G60+G45+G39 -> 0
B84: GROSS PROFIT | G84: =+G30-G82 -> 0

Sheet 8 Farm Income Statement
A1: INVEST – Farm Analysis Tool
B2: 8 FARM INCOME STATEMENT
F4: Farm code | G4: ='1 General Information'!C6 -> 0
C6: + | D6: Gross value of seasonal crop production | E6: =Calculation!D9 -> 2500 | F6: ='1 General Information'!$D$14 -> 0 | G6: + | H6: =IF($E$16=0,0,(+E6/$E$16)*(1-$E$14)) -> 1
C7: + | D7: Gross value of seasonal crop by-product production | E7: =Calculation!E9 -> 0 | F7: ='1 General Information'!$D$14 -> 0 | G7: + | H7: =IF($E$16=0,0,(+E7/$E$16)*(1-$E$14)) -> 0
C8: + | D8: Gross value of perennial crop production | E8: =Calculation!D10 -> 0 | F8: ='1 General Information'!$D$14 -> 0 | G8: + | H8: 0
C9: + | D9: Gross value of perennial crop by-product production | E9: =Calculation!E10 -> 0 | F9: ='1 General Information'!$D$14 -> 0 | G9: + | H9: 0
C10: + | D10: Gross value of livestock production: | E10: =Calculation!D11 -> 0 | F10: ='1 General Information'!$D$14 -> 0 | G10: + | H10: 0
C11: + | D11: Gross value of livestock by-product production: | E11: =Calculation!E11 -> 0 | F11: ='1 General Information'!$D$14 -> 0 | G11: + | H11: 0
C12: + | D12: Gross value of other income: | E12: ='4 Other Income'!O15 -> 0 | F12: ='1 General Information'!$D$14 -> 0 | G12: + | H12: 0
C14: - | D14: Anticipated losses of total sales (reduction factor) | E14: 0.1 | F14: %
C16: = | D16: GROSS FARM INCOME | E16: =SUM(E6:E12)-(SUM(E6:E12)*E14) -> 2250 | F16: ='1 General Information'!$D$14 -> 0 | G16: = | H16: =SUM(H6:H12) -> 1
C19: - | D19: Total fixed costs | E19: ='3 General Costs & Financing'!O15+('3 General Costs & Financing'!H37*12) -> 0 | F19: ='1 General Information'!$D$14 -> 0 | G19: + | H19: =IF($E$22=0,0,+E19/$E$22) -> 0
C20: - | D20: Total variable costs (for regular expenses) | E20: ='3 General Costs & Financing'!O24+'2 Equipment & Assets'!G38 -> 1200 | F20: ='1 General Information'!$D$14 -> 0 | G20: + | H20: =IF($E$22=0,0,+E20/$E$22) -> 0.3333333333
C21: - | D21: Total variable costs for crop and livestock production | E21: =Calculation!Q12 -> 2400 | F21: ='1 General Information'!$D$14 -> 0 | G21: + | H21: =IF($E$22=0,0,+E21/$E$22) -> 0.6666666667
C22: = | D22: TOTAL COST | E22: =SUM(E19:E21) -> 3600 | F22: ='1 General Information'!$D$14 -> 0 | G22: = | H22: =SUM(H19:H21) -> 1
C58: = | D58: GROSS FARM PROFIT | E58: ="For period " & '1 General Information'!D13 -> For period | F58: ="to " & '1 General Information'!E13 -> to | G58: =E16-E22 -> -1350 | H58: ='1 General Information'!$D$14 -> 0
D59: Farm Profit Margin | G59: =(E16-E22)/E16 -> -0.6
D61: ="average profit per "&'1 General Information'!$D$15&" of seasonal crops:" -> average profit per ha of seasonal crops: | F61: =IFERROR(Calculation!R9/Calculation!C9,"no crops") -> 312.5 | H61: ='1 General Information'!$D$14&" per"&" "&'1 General Information'!$D$15 -> per ha
D62: ="average profit per "&'1 General Information'!D15&" of perennial crops:" -> average profit per ha of perennial crops: | F62: =IFERROR(Calculation!R10/Calculation!C10,"no crops") -> no crops | H62: ='1 General Information'!$D$14&" per"&" "&'1 General Information'!$D$15 -> per ha
D63: average profit per head of livestock: | F63: =IFERROR(Calculation!R11/Calculation!C11,"no livestock") -> no livestock | H63: ='1 General Information'!$D$14&" per head" -> per head
D64: total crop area under cultivation: | F64: =Calculation!C9+Calculation!C10 -> 8 | H64: ='1 General Information'!D15 -> ha | J64: =(SUM('1 General Information'!I33:I37))-F64 -> 0
D65: =IF(J64<0,"Cultivated area does not match available crop area (1. General Information)","") -> 

Sheet Calculation (hidden)
B1: DESIGN – Farm Analysis Tool
B2: 7 SUMMARY OF GROSS MARGINS
B4: Farm code | C4: ='1 General Information'!C6 -> 0
B6: Farm Enterprise | C6: Area cultivated / Livestock sold | D6: Gross Main Product | E6: Gross By-product | F6: Gross Prodcut | G6: Seeds / Seedlings / Establishment | H6: Fodder / Fodder Concentrates | I6: Manure / Fertiliser | J6: Veterinary Services | K6: Plant Protection | L6: Labour | M6: Traction / Mechanisation | N6: Infrastructure | O6: Irrigation / Water supply | P6: Other Costs | Q6: Total Costs | R6: Revenue | S6: Share of enterprise at total GM
C7: ='1 General Information'!D15&" / head" -> ha / head | D7: ='1 General Information'!$D$14 -> 0 | E7: ='1 General Information'!$D$14 -> 0 | F7: ='1 General Information'!$D$14 -> 0 | G7: ='1 General Information'!$D$14 -> 0 | H7: ='1 General Information'!$D$14 -> 0 | I7: ='1 General Information'!$D$14 -> 0 | J7: ='1 General Information'!$D$14 -> 0 | K7: ='1 General Information'!$D$14 -> 0 | L7: ='1 General Information'!$D$14 -> 0 | M7: ='1 General Information'!$D$14 -> 0 | N7: ='1 General Information'!$D$14 -> 0 | O7: ='1 General Information'!$D$14 -> 0 | P7: ='1 General Information'!$D$14 -> 0 | Q7: =M7 -> 0 | R7: =Q7 -> 0 | S7: %
D8: total | E8: total | F8: total | G8: total | H8: total | I8: total | J8: total | K8: total | L8: total | M8: total | N8: total | O8: total | P8: total | Q8: total | R8: per farm enterprise
B9: Seasonal crops | C9: ='5 Seasonal Crops'!C6 -> 8 | D9: =SUM('5 Seasonal Crops'!G10:G14) -> 2500 | E9: =SUM('5 Seasonal Crops'!G16:G18) -> 0 | F9: ='5 Seasonal Crops'!G19 -> 2500 | G9: ='5 Seasonal Crops'!G24 -> 0 | I9: ='5 Seasonal Crops'!G30 -> 0 | K9: ='5 Seasonal Crops'!G36 -> 0 | L9: ='5 Seasonal Crops'!G44 -> 0 | M9: ='5 Seasonal Crops'!G51 -> 0 | N9: ='5 Seasonal Crops'!G58 -> 0 | O9: ='5 Seasonal Crops'!G62 -> 0 | P9: ='5 Seasonal Crops'!G69 -> 0 | Q9: ='5 Seasonal Crops'!G71 -> 0 | R9: ='5 Seasonal Crops'!G73 -> 2500 | S9: =IF($R$12=0,0,+R9/$R$12) -> 25
B10: Perennial crops | C10: ='6 Perennial Crops'!C6 -> 0 | D10: =SUM('6 Perennial Crops'!G10:G14) -> 0 | E10: =SUM('6 Perennial Crops'!G16:G18) -> 0 | F10: ='6 Perennial Crops'!G19 -> 0 | G10: ='6 Perennial Crops'!G26 -> 0 | I10: ='6 Perennial Crops'!G32 -> 0 | K10: ='6 Perennial Crops'!G38 -> 0 | L10: ='6 Perennial Crops'!G46 -> 2400 | M10: ='6 Perennial Crops'!G53 -> 0 | N10: ='6 Perennial Crops'!G60 -> 0 | O10: ='6 Perennial Crops'!G64 -> 0 | P10: ='6 Perennial Crops'!G71 -> 0 | Q10: ='6 Perennial Crops'!G73 -> 2400 | R10: ='6 Perennial Crops'!G75 -> -2400 | S10: =IF($R$12=0,0,+R10/$R$12) -> -24
B11: Livestock | C11: ='7 Livestock'!C6 -> 0 | D11: =SUM('7 Livestock'!G10:G23) -> 0 | E11: =SUM('7 Livestock'!G25:G29) -> 0 | F11: ='7 Livestock'!G30 -> 0 | H11: ='7 Livestock'!G39 -> 0 | J11: ='7 Livestock'!G45 -> 0 | L11: ='7 Livestock'!G53 -> 0 | N11: ='7 Livestock'!G67 -> 0 | O11: ='7 Livestock'!G71 -> 0 | P11: ='7 Livestock'!G80 -> 0 | Q11: ='7 Livestock'!G82 -> 0 | R11: ='7 Livestock'!G84 -> 0 | S11: =IF($R$12=0,0,+R11/$R$12) -> 0
B12: Sub-Total (for entire farm) | D12: =SUM(D9:D11) -> 2500 | E12: =SUM(E9:E11) -> 0 | F12: 2500 | G12: 0 | H12: 0 | I12: 0 | J12: 0 | K12: 0 | L12: 2400 | M12: 0 | N12: 0 | O12: 0 | P12: 0 | Q12: =SUM(Q9:Q11) -> 2400 | R12: =SUM(R9:R11) -> 100 | S12: =SUM(S9:S11) -> 1
B15: Fixed and Variable Costs | C15: ='3 General Costs & Financing'!B8 -> Membership fees | D15: ='3 General Costs & Financing'!B9 -> Insurance costs | E15: ='3 General Costs & Financing'!B10 -> Land tax | F15: ='3 General Costs & Financing'!B11 -> Social fund contribution | G15: ='3 General Costs & Financing'!B12 -> Leasing fees for equipment | H15: ='3 General Costs & Financing'!B13 -> Rental costs for land | I15: ='3 General Costs & Financing'!E38 -> Total Annual Loan Repayments | J15: ='2 Equipment & Assets'!B38 -> 0 | K15: ='3 General Costs & Financing'!B14 -> Other fixed costs | L15: ='3 General Costs & Financing'!B18 -> Maintenance & repair | M15: ='3 General Costs & Financing'!B19 -> General fuel & lubricants | N15: ='3 General Costs & Financing'!B20 -> Water, electricity, gas supply | O15: ='3 General Costs & Financing'!B21 -> Regular transport fees | P15: ='3 General Costs & Financing'!B22 -> Regular staff salary costs | Q15: ='3 General Costs & Financing'!B23 -> Other variable costs
C16: ='1 General Information'!$D$14 -> 0 | D16: ='1 General Information'!$D$14 -> 0 | E16: ='1 General Information'!$D$14 -> 0 | F16: ='1 General Information'!$D$14 -> 0 | G16: ='1 General Information'!$D$14 -> 0 | H16: ='1 General Information'!$D$14 -> 0 | I16: ='1 General Information'!$D$14 -> 0 | J16: ='1 General Information'!$D$14 -> 0 | K16: ='1 General Information'!$D$14 -> 0 | L16: ='1 General Information'!$D$14 -> 0 | M16: ='1 General Information'!$D$14 -> 0 | N16: ='1 General Information'!$D$14 -> 0 | O16: ='1 General Information'!$D$14 -> 0 | P16: ='1 General Information'!$D$14 -> 0 | Q16: ='1 General Information'!$D$14 -> 0
C17: ='3 General Costs & Financing'!O8 -> 0 | D17: ='3 General Costs & Financing'!O9 -> 0 | E17: ='3 General Costs & Financing'!O10 -> 0 | F17: ='3 General Costs & Financing'!O11 -> 0 | G17: ='3 General Costs & Financing'!O12 -> 0 | H17: ='3 General Costs & Financing'!O13 -> 0 | I17: =IF('3 General Costs & Financing'!H37=0,('3 General Costs & Financing'!J37*12),('3 General Costs & Financing'!H37*12)) -> 0 | J17: ='2 Equipment & Assets'!G38 -> 1200 | K17: ='3 General Costs & Financing'!O14 -> 0 | L17: ='3 General Costs & Financing'!O18 -> 0 | M17: ='3 General Costs & Financing'!O19 -> 0 | N17: ='3 General Costs & Financing'!O20 -> 0 | O17: ='3 General Costs & Financing'!O21 -> 0 | P17: ='3 General Costs & Financing'!O22 -> 0 | Q17: ='3 General Costs & Financing'!O23 -> 0

Sheet Crop Price Calculation Sheet
A1: INVEST – Farm Analysis Tool
A2: Supplementary sheet for calculating average annual costs for selected crops and livestock based on seasonal monthly variations
B3: January | C3: February | D3: March | E3: April | F3: May | G3: June | H3: July | I3: August | J3: September | K3: October | L3: November | M3: December | N3: AVERAGE
B4: Unit price | C4: Unit price | D4: Unit price | E4: Unit price | F4: Unit price | G4: Unit price | H4: Unit price | I4: Unit price | J4: Unit price | K4: Unit price | L4: Unit price | M4: Unit price | N4: Unit price
A5: Seasonal Crops
A6: ='5 Seasonal Crops'!B10 -> 0 | N6: =AVERAGE(B6:M6) -> 
A7: ='5 Seasonal Crops'!B11 -> marschmallow | N7: =AVERAGE(B7:M7) -> 
A8: ='5 Seasonal Crops'!B12 -> 0
A9: ='5 Seasonal Crops'!B13 -> 0
A10: ='5 Seasonal Crops'!B14 -> 0
A11: ='5 Seasonal Crops'!B15 -> By-products:
A12: ='5 Seasonal Crops'!B16 -> 0
A13: ='5 Seasonal Crops'!B17 -> 0
A14: ='5 Seasonal Crops'!B18 -> 0
A15: Perennial crops
A16: ='6 Perennial Crops'!B10 -> 0
A17: ='6 Perennial Crops'!B11 -> 0
A18: ='6 Perennial Crops'!B12 -> 0
A19: ='6 Perennial Crops'!B13 -> 0
A20: ='6 Perennial Crops'!B14 -> 0
A21: ='6 Perennial Crops'!B15 -> By-products:
A22: ='6 Perennial Crops'!B16 -> 0
A23: ='6 Perennial Crops'!B17 -> 0
A24: ='6 Perennial Crops'!B18 -> 0
A25: Livestock
A26: ='7 Livestock'!B10 -> Dairy cows
A27: ='7 Livestock'!B11 -> Heifers
A28: ='7 Livestock'!B12 -> Adult steers
A29: ='7 Livestock'!B13 -> Juvenile steers
A30: ='7 Livestock'!B14 -> Calfs
A31: ='7 Livestock'!B15 -> Sheep does
A32: ='7 Livestock'!B16 -> Sheep bucks
A33: ='7 Livestock'!B17 -> Sheep kids
A34: ='7 Livestock'!B18 -> Goat does
A35: ='7 Livestock'!B19 -> Goat bucks
A36: ='7 Livestock'!B20 -> Goat kids
A37: ='7 Livestock'!B21 -> Chickens
A38: ='7 Livestock'!B22 -> 0
A39: ='7 Livestock'!B23 -> 0
A40: ='7 Livestock'!B24 -> By-products:
A41: ='7 Livestock'!B25 -> Milk
A42: ='7 Livestock'!B26 -> Eggs
A43: ='7 Livestock'!B27 -> Skins
A44: ='7 Livestock'!B28 -> Manure
A45: ='7 Livestock'!B29 -> 0
